Cogmind - Beta 17 @@@ ROGUE MODE // 2026.06.24 @ 20:00:15 Player: Dadrick Result: Destroyed by F1-UIF(R) with Subdweller Machine Gun Performance ------------- Evolutions (0) 0 Regions Visited (2) 400 Robots Destroyed (39) 195 Value Destroyed (1085) 1085 Prototype IDs (2) 40 Alien Tech Used (0) 0 Bonus (-5) -5 TOTAL SCORE: 1715 Bonus ------- Friendly Fire -5 Cogmind --------- Core Integrity 0/250 Matter 241/300 Energy 250/250 System Corruption 0% Temperature Cool (0) Movement Walking (120) Location -10/Subcaves Parts ------- > --- POWER (1) -------- Ion Engine > --- PROPULSION (2) --- Aluminum Leg Myomer Leg > --- UTILITY (2) ------ Scrap Shield > --- WEAPON (2) ------- Bore Cannon Grenade Launcher > --- INVENTORY (5) ---- Large Storage Unit Seismic Detector Subdweller Machine Gun Multitool Scrap Shield Fragment (46) Peak State ------------ > --- POWER ------------ Ion Engine > --- PROPULSION ------- Aluminum Leg Myomer Leg > --- UTILITY ---------- Scrap Shield > --- WEAPON ----------- Subdweller Machine Gun Bore Cannon > --- INVENTORY -------- Large Storage Unit Seismic Detector Light Armor Plating Grenade Launcher Multitool [Rating: 20] Favorites ----------- Power Ion Engine Engine Ion Engine Propulsion Aluminum Leg Leg Aluminum Leg Utility Scrap Shield Device Seismic Detector Storage Medium Storage Unit Protection Scrap Shield Weapon Subdweller Machine Gun Energy Gun Small Laser Ballistic Gun Subdweller Machine Gun Ballistic Cannon Bore Cannon Launcher Grenade Launcher Special Weapon Mining Laser Build | -11 -10 -10 ------- Run | Yrd Mat Sub Slots Evolved . | . . . Power . | . . . Propulsion . | . . . Utility . | . . . Weapon . | . . . Parts Attached 30 | 8 9 13 Power 2 | 1 . 1 Engine 2 | 1 . 1 Core . | . . . Reactor . | . . . Propulsion 7 | 2 2 3 Treads . | . . . Leg 7 | 2 2 3 Wheel . | . . . Hover . | . . . Flight . | . . . Utility 8 | 2 3 3 Device 1 | 1 . . Storage 3 | 1 1 1 Processor . | . . . Hackware . | . . . Protection 4 | . 2 2 Artifact . | . . . Weapon 13 | 3 4 6 Energy Gun 3 | 3 . . Energy Cannon . | . . . Ballistic Gun 7 | . 2 5 Ballistic Cannon 1 | . . 1 Launcher 1 | . 1 . Special Weapon 1 | . 1 . Impact Weapon . | . . . Slashing Weapon . | . . . Piercing Weapon . | . . . Special Melee Weapon . | . . . Unidentified Prototypes . | . . . Parts Lost 1 | . . 1 Power . | . . . Propulsion . | . . . Utility . | . . . Weapon 1 | . . 1 Highest Loss Streak 1 | . . 1 To Critical Strikes . | . . . Average Backups 6 | 1 7 6 Power . | . 1 . Propulsion . | . 1 . Utility 2 | . 1 3 Weapon 1 | 1 3 1 Tool/Special . | . . . Unused Backups 3 | . 2 1 Power . | . . . Propulsion 1 | . 1 . Utility . | . . . Weapon 1 | . 1 . Tool/Special 1 | . . 1 Average Slot Usage (%) 93 | . 100 91 Engine 14 | . 14 14 Leg 28 | . 28 28 Device 4 | . 8 3 Storage 7 | . 14 6 Protection 9 | . 5 10 Energy Gun 3 | . 16 1 Ballistic Gun 16 | . 11 17 Ballistic Cannon 5 | . . 6 Launcher 2 | . . 3 Peak Build Rating 20 | 7 8 20 Average Rating 14 | 5 7 16 On Entrance 5 | . 7 8 Avg Prop Armor Cover (%) . | . . . Naked Turns . | . . . Heaviest Build 36 | 13 20 36 Greatest Support 35 | 20 20 35 Greatest Overweight (x) 1 | . . 1 Average Overweight (x) . | . . . Largest Inventory Capacity 15 | 8 10 15 Average Capacity 8 | 7 8 8 Most Carried 11 | 3 10 11 Average Carried 7 | 1 7 7 Final Capacity 10 | 8 10 5 Final Carried 10 | 3 10 5 Class Distribution -------------------- 71% | Mutant 28% | Scavenger-Mutant Dominant Class ---------------- Mutant | -10/Materials Mutant | -10/Subcaves Resources | -11 -10 -10 ----------- Run | Yrd Mat Sub Matter Collected 1530 | 280 257 993 Remotely . | . . . Salvage Created 906 | 103 361 442 Parts 50 | 6 21 23 Haulers Intercepted 1 | . 1 . Recyclers Shooed . | . . . Parts Field Recycled . | . . . Retrieved Matter . | . . . Parts Self-Destructed 18 | . . 18 Prevented . | . . . Parts Restored . | . . . Kills | -11 -10 -10 ------- Run | Yrd Mat Sub Combat Hostiles Destroyed 34 | . 10 24 Guns 15 | . 8 7 AOE 19 | . 2 17 Classes Destroyed 8 | 2 4 2 Tunneler 2 | 2 . . Hauler 1 | . 1 . Recycler 1 | 1 . . Watcher 1 | . 1 . Swarmer 11 | . 3 8 Grunt 7 | . 7 . Sentry 2 | . . 2 Subdweller 14 | . . 14 Best Kill Streak 4 | 3 3 4 Combat Bots Only 4 | . 3 4 Max Kills in Single Turn 2 | 1 1 2 Gunslinging . | . . . Exploded 2 | . 1 2 Melee . | . . . Uniques/NPCs Destroyed . | . . . Combat | -11 -10 -10 -------- Run | Yrd Mat Sub Hostile Shots Fired 133 | . 45 88 Missed 40 | . 13 27 Hits 93 | . 32 61 Projectile 93 | . 32 61 AOE 1 | . . 1 Damage Taken 1618 | . 415 1203 Core 256 | . 35 221 Absorbed by Shields . | . . . Core Remaining (%) 100 | 100 . . Volleys Fired 154 | 7 37 110 Largest 2 | 2 2 2 Hottest 100 | 80 100 78 Shots Fired 210 | 14 69 127 Gun 153 | 14 64 75 Cannon 12 | . . 12 Launcher 43 | . 3 40 Special 2 | . 2 . Kinetic 119 | . 32 87 Thermal 48 | 14 34 . Explosive 43 | . 3 40 Electromagnetic . | . . . Robot Hit Streak 13 | 4 12 13 Robot Miss Streak 5 | 2 4 5 Penetration Max . | . . . Secondary Targets 1 | . 1 . Max Gunslinging Chain 1 | . 1 . Shots Hit Robots 93 | 7 44 42 Core Hits 63 | 4 20 39 Critical Kills 1 | . . 1 Critical Parts Destroyed . | . . . Critical Strikes 1 | . . 1 Destroy 1 | . . 1 Melee Attacks . | . . . Impact . | . . . Slashing . | . . . Piercing . | . . . Sneak Attacks . | . . . Combat Hostiles . | . . . Follow-up Attacks . | . . . Damage Inflicted 2955 | 77 622 2256 Guns 913 | 77 464 372 Cannons 20 | . . 20 Explosions 2022 | . 158 1864 Melee . | . . . Ramming . | . . . Kinetic 620 | . 228 392 Thermal 313 | 77 236 . Explosive 2022 | . 158 1864 Electromagnetic . | . . . Impact . | . . . Slashing . | . . . Piercing . | . . . Highest Corruption . | . . . Average Corruption . | . . . Corruption Purged . | . . . Corruption Blocked . | . . . Overload Shots . | . . . Overflow Damage . | . . . Projectiles . | . . . Explosions . | . . . Melee . | . . . Knockbacks . | . . . Impact . | . . . Kinetic . | . . . Secondary . | . . . Self-Inflicted Damage 15 | . . 15 Shots 1 | . . 1 Rammed . | . . . Targets Rammed . | . . . Kicked . | . . . Crushed . | . . . Highest Temperature 101 | 90 101 . Average Temperature 34 | 40 33 . Received Heat Transfer 297 | . 144 153 Siege Activations . | . . . Martial Activations . | . . . Shielding Activations . | . . . Robots Disrupted . | . . . Combat Hostiles . | . . . Robots Corrupted . | . . . Combat Hostiles . | . . . Parts Fried . | . . . Impact Corruptions . | . . . Robots Melted . | . . . Combat Hostiles . | . . . Parts Melted . | . . . Heat Transferred 725 | 175 550 . Parts Sabotaged . | . . . Parts Stolen . | . . . Parts Stripped . | . . . Power Chain Reactions . | . . . Alert | -11 -10 -10 ------- Run | Yrd Mat Sub Maximum Alert Level . | . . . Low Security (%) 100 | 100 100 . Level 1 . | . . . Level 2 . | . . . Level 3 . | . . . Level 4 . | . . . Level 5 . | . . . High Security . | . . . Max Security . | . . . Peak Influence 129 | 10 129 . Initial . | . . . Average 44 | . 51 . Influence Increases 656 | 15 316 325 Destroy 0b10 Robot/C 400 | . 200 200 Destroy 0b10 Robot/NC 25 | 15 10 . Destroy Leader 74 | . 54 20 Successful Hack 16 | . 16 . Disable Machine 15 | . 15 . Destroy Structure 21 | . 21 . Lose Combat Pursuer 105 | . . 105 Influence Decreases 645 | 15 243 387 Entered New Map 36 | . . 36 Time Decay 609 | 15 243 351 Squads Dispatched 2 | . 2 . Investigation . | . . . Extermination . | . . . Reinforcement 2 | . 2 . Assault . | . . . Garrison . | . . . Intercept . | . . . Searches Triggered . | . . . Construction Impeded . | . . . Haulers Reinforced . | . . . Active Scanning Responses . | . . . Cargo Convoy Interrupts . | . . . Stealth | -11 -10 -10 --------- Run | Yrd Mat Sub Distress Signals 1 | . 1 . Communications Jammed . | . . . Distress Signals . | . . . Times Spotted 51 | . 18 33 Peak Tracking Total 6 | . 5 6 Tactical Retreats 4 | . . 4 Traps | -11 -10 -10 ------- Run | Yrd Mat Sub Traps Triggered 2 | . 1 1 Indirectly . | . . . Trap Hack Attempts . | . . . Triggered . | . . . Disarmed . | . . . Reprogrammed . | . . . Reused . | . . . Traps Extracted . | . . . Installed . | . . . Triggered . | . . . Machines | -11 -10 -10 ---------- Run | Yrd Mat Sub Machines Disabled 1 | . 1 . Max in Single Turn 1 | . 1 . Machines Repaired . | . . . Machines Dismantled . | . . . Machines Sabotaged . | . . . Overloaded Fab Kills . | . . . Hacking | -11 -10 -10 --------- Run | Yrd Mat Sub Machines Accessed 4 | . 3 1 Terminals 3 | . 3 . Fabricators . | . . . Repair Stations . | . . . Recycling Units . | . . . Scanalyzers . | . . . Garrison Access . | . . . Total Hacks 11 | . 7 4 Successful 7 | . 3 4 Failed 4 | . 4 . Catastrophic . | . . . Database Lockouts . | . . . Manual . | . . . Terminals 7 | . 7 . Fabricators . | . . . Repair Stations . | . . . Recycling Units . | . . . Scanalyzers . | . . . Garrison Access . | . . . Terminal Hacks 7 | . 3 4 Record 4 | . . 4 Prototype ID Bank 1 | . 1 . Hauler Manifests 1 | . 1 . Registered Components 1 | . 1 . Fabricator Hacks . | . . . Repair Station Hacks . | . . . Recycling Unit Hacks . | . . . Scanalyzer . | . . . Garrison Access Hacks . | . . . Unauthorized Hacks . | . . . Terminals . | . . . Fabricators . | . . . Repair Stations . | . . . Recycling Units . | . . . Scanalyzers . | . . . Garrison Access . | . . . Data Cores Recovered . | . . . Used . | . . . Hacking Detections 2 | . 2 . Full Trace Events . | . . . Feedback Events . | . . . Feedback Blocked . | . . . Robot Schematics Acquired . | . . . Robots Built . | . . . Authchips . | . . . Time . | . . . Total Robot Build Rating . | . . . Part Schematics Acquired . | . . . Parts Built . | . . . Authchips . | . . . Time . | . . . Total Part Build Rating . | . . . Part Studies Acquired . | . . . Parts Repaired . | . . . Time . | . . . Parts Recycled . | . . . Recycled Matter . | . . . Retrieved Matter . | . . . Retrieved Components . | . . . Parts Scanalyzed . | . . . Part Schematics Acquired . | . . . Parts Damaged . | . . . Bothacking | -11 -10 -10 ------------ Run | Yrd Mat Sub Used RIF Installer . | . . . Robots Hacked . | . . . Non-combat . | . . . Combat . | . . . Robot Hacks Applied . | . . . Relay Couplers Released . | . . . Fabnet Peak Effective % . | . . . Robots Rewired . | . . . Allies Hacked . | . . . Hacks Repelled . | . . . Allies | -11 -10 -10 -------- Run | Yrd Mat Sub Total Allies . | . . . Largest Group . | . . . Highest-Rated Group . | . . . Highest-Rated Ally . | . . . Total Orders . | . . . Ally Attacks . | . . . Total Damage . | . . . Kills . | . . . Allies Corrupted . | . . . Allies Melted . | . . . Intel | -11 -10 -10 ------- Run | Yrd Mat Sub Active Infowar (turns) 1421 | 42 481 898 Seismic 1421 | 42 481 898 Robot Analysis Total . | . . . Derelict Logs Recovered 2 | . . 2 Drone Launches . | . . . Drone Recoveries . | . . . Exploration | -11 -10 -10 ------------- Run | Yrd Mat Sub Turns Passed 4685 | 140 770 3775 Spaces Moved 2877 | 90 423 2364 Core 4 | 4 . . Treads . | . . . Legs 2873 | 86 423 2364 Wheels . | . . . Hover . | . . . Flight . | . . . Fastest Speed 50 | 50 120 120 Average Speed 139 | 116 120 143 Slowest Speed 190 | 120 120 190 Overloaded Moves . | . . . Propulsion Burnouts . | . . . Robots Hopped . | . . . Potential Cave-ins 3 | . . 3 Cave-ins Triggered 1 | . . 1 Exploration Rate (%) 58 | 3 82 91 Regions Visited 2 Branch Regions 1 Pre-discovered Areas . | . . . Known Exits Taken . | . . . Unknown Exits Taken 2 | 1 1 . Scrap Searched 11 | . . 11 Spaces Dug 19 | . 1 18 Terrain Destroyed 219 | . 21 198 Melee . | . . . Projectile 24 | . 1 23 AOE 195 | . 20 175 Terrain Rammed . | . . . Walls Destroyed . | . . . Machines Disabled . | . . . Actions | -11 -10 -10 --------- Run | Yrd Mat Sub Total 3324 | 107 611 2606 Wait 182 | . 118 64 Move 2874 | 89 422 2363 Hop . | . . . Pick Up 22 | 3 11 8 Fast Attach 10 | 7 . 3 Attach 2 | . . 2 Detach 1 | . . 1 Swap 55 | 1 16 38 Drop 21 | . 7 14 Fire 154 | 7 37 110 Melee . | . . . Ram . | . . . Kick . | . . . Crush . | . . . Escape Stasis 1 | . . 1 Rewire . | . . . Trap . | . . . Miscellaneous 2 | . . 2 Route ------- -11/Scrapyard -10/Materials (discovered 6 exits: [*Mat x3] / [*Min x2] / *Sub) -10/Subcaves (discovered 2 exits: [*Mat x2]) History --------- Turn | Location | Event 5 | -11/Scrapyard | Discovered new exit (range 15) 141 | -11/Scrapyard | Entered Materials 288 | -10/Materials | Discovered new exit (range 14) 305 | -10/Materials | Build established: Mutant 340 | -10/Materials | Discovered new exit (range 3) 413 | -10/Materials | Discovered new exit (range 5) 580 | -10/Materials | Discovered new exit (range 14) 659 | -10/Materials | Discovered new exit (range 13) 844 | -10/Materials | Discovered new exit (range 7) 911 | -10/Materials | Entered Subcaves 912 | -10/Subcaves | Approached by a straggling Scientist 1091 | -10/Subcaves | Discovered new exit (range 11) 1325 | -10/Subcaves | Shifting Twisted Machinery released Piercing Trap 1331 | -10/Subcaves | Shifting Twisted Machinery released Mak. Sword 1548 | -10/Subcaves | Learned Materials stockpile data 1747 | -10/Subcaves | Build established: Scavenger-Mutant 1819 | -10/Subcaves | Disturbed a concealed Subdweller 1832 | -10/Subcaves | Core integrity fell below 50% 1989 | -10/Subcaves | Discovered new exit (range 6) 2063 | -10/Subcaves | Visited Clippyterm 2067 | -10/Subcaves | Learned Research security intel 2119 | -10/Subcaves | A swath of the cavern ceiling suddenly collapsed 2468 | -10/Subcaves | Core integrity fell below 20% 2503 | -10/Subcaves | A swath of the cavern ceiling suddenly collapsed 2612 | -10/Subcaves | Shifting Twisted Machinery released Sub. Beam Cannon 2765 | -10/Subcaves | Shifting Twisted Machinery released Sub. Beam Cannon 2984 | -10/Subcaves | Build established: Mutant 4010 | -10/Subcaves | Learned 8 Materials zone layouts 4045 | -10/Subcaves | Ambushed by Subdweller buried in earth 4158 | -10/Subcaves | Crushed by falling debris 4482 | -10/Subcaves | Shifting Twisted Machinery released Sub. Monowheel 4501 | -10/Subcaves | Shifting Twisted Machinery released Sub. Machine Gun 4681 | -10/Subcaves | A Subdweller sparked back to life 4681 | -10/Subcaves | A Subdweller sparked back to life 4686 | -10/Subcaves | Destroyed by F1-UIF(R) with Subdweller Machine Gun Last Messages --------------- 04095_ HV Slug penetrates Y-45 Defender. 04098_ Y-45 Defender destroyed. 04098_ HV Slug penetrates Earth. 04103_ Flight Unit fries itself beyond repair. 04103_ Acquired 46 matter. 04115_ Hvy. Assault Rifle fries itself beyond repair. 04115_ Lgt. Treads fries itself beyond repair. 04158_ The unstable cave ceiling collapses. 04158_ Crushed by falling debris. 04354_ Scrap Shield Fragment affixed to Scrap Shield (+49). 04359_ Scrap Shield Fragment affixed to Scrap Shield (+35). Sub. Monowheel falls loose from the Twisted Machinery. 04489_ Sub. Machine Gun shoots sparks and powers down. 04491_ Dropped Broken Sub. Machine Gun. 04492_ HV Slug penetrates Twisted Machinery. 04496_ HV Slug penetrates Wall. Sub. Machine Gun falls loose from the Twisted Machinery. 04510_ Acquired Sub. Machine Gun. 04681_ KD-0A2(R) creaks and sparks as it begins to move. 04681_ BW-U8F(R) creaks and sparks as it begins to move. Map ----- +----------------------------------------------------+ | ??????????# ##????# # ###??????? | | ??????????## #####?????# ####????????? | | ???????????# ##?????????## ##?????????? | | ???????###?# ## #???????????## #?????????? | | ???????# ### # #????????????#####?????????? | | ???????# # ###??????????????????????????? | | ???????# # #???????????????????????????? | | ???????# #???????????????????????????? | | ??????## ## ##???????????????????????????? | | ??????# ### #???????????????????????????? | | ?????## #???????????????????????????? | | ?????# ##??????????????????????????? | | ?????### #??????????????????????????? | | ??????## #??????????????????????????? | | ??????# ####?????????????????????????? | | ??????# # # ##?# ######???????????????????? | | ????? # # ###??# #???????????????????? | | ????## ## # ##?#### RR<<#???????????????????? | | ?????### " #?## # #???????????????????? | | ???????##" ##?# < #???###?????????????? | | ????#### ##?## & #??? ??##??????????? | | ????# # #### ##O R<#? ? #??????????? | | ????# # ## #? # ##?????????? | | ????# # | # #?????????? | | ????# & ## #???????????????? | | ????# ##& #### # ### @ # ##???????????????? | | ????# # " #?###### #####? #????????????????? | | ????## " ##??????## ##?????? #????????????????? | | ?????###"" #????????####?????????????????????????? | | ???????#" #?????????????????????????????????????? | | ??????## #?????????????????????????????????????? | | ?????## ##?????????????????????????????????????? | | ?????# #?????????????????????????????????????? | | ?????# ##????????????????????????????????????## | | ?????# ##????????????????????????????????????## | | ?????# #????????????????????????????????????## | | ?????## #???????????????????????????????????##" | | ??????### #???????????????????????????????????#" | | ???##???# #???????????????????????????????????##" | | ??## #### ##???????????????????????????????###??#" | | ??# #????????????????????????????????# ##?## | | ??# #???????????????????????????????## #??? | | ?## ##??????????????????????????????# #### | | ?# #??????????????????????????????# # | | ?# ## #??????????????????????????????# | | ?### ## #??????????????????????????????# # ## | | ???# ## #?????????????????????????????## ###? | | ???## # #?????????????????????????????# # ## | | ??### #?####????????????????????????# # | | ?## ## #?# ##???????????????????????# # | +----------------------------------------------------+ Best States ------------- Heat Dissipation 25 Energy Generation 10 Energy Capacity 250 Matter Stores 300 Matter Capacity 300 Sight Range 16 Terrain Scan Density 10 Armor Coverage 800 Evasion (%) 55 Item Schematics ----------------- None Robot Schematics ------------------ None Fabricated ------------ Nothing Repaired ---------- Nothing Studied --------- None Alien Tech Used ----------------- None Achievements -------------- None Challenges ------------ None Game ------ Seed ZeronetProtonManipulator Manual? 0 Play Time 00:33:22 Cumulative 488.4 hours Start 2026.06.24 @ 19:15:48 End 2026.06.24 @ 20:00:15 Sessions 1 Manual Loads 0 Difficulty Rogue Special Mode None Game No. 176 Rogue 155 Adventurer 21 Explorer 0 Win Type - Total 24 Types 14/1/5/1/0/0/0/2/0/1 Lore% 67 Gallery% 73 Achievement% 65 Wizard Run 0 Options --------- Layout 1 ASCII 0 Keyboard 0 Movement Mouse Keybinds 0 Fullscreen 2 Font 32/SmallcapsGlow Map View 77x35 Zoom Use 0% Tactical HUD 1 Map Filters NONE Filters NONE Steam 1 RUN: 4c0fbd3e-3dae-4ef9-9c99-2f8b7f990bd6